Cogmind - Beta 13 @@@ ROGUE MODE // 2024.04.21 @ 00:56:08 Player: H3-RMN Result: Destroyed by H-55 Commando with Assault Rifle Performance ------------- Evolutions (0) 0 Regions Visited (4) 800 Robots Destroyed (33) 165 Value Destroyed (797) 797 Prototype IDs (12) 240 Alien Tech Used (0) 0 Bonus (44) 44 TOTAL SCORE: 2046 Bonus ------- Follower Combat Kills 44 Cogmind --------- Core Integrity 0/250 Matter 300/300 Energy 110/200 System Corruption 0% Temperature Cool (44) Movement Walking (270) Ox2 Location -8/Recycling Parts ------- > --- POWER (1) -------- Subdweller Power Source > --- PROPULSION (2) --- Cargo Legs > --- UTILITY (2+2) ---- Cargo Storage Unit (++) Makeshift Light Armor Plating Hacking Suite > --- WEAPON (2) ------- Subdweller Beam Cannon Battle Rifle > --- INVENTORY (30) --- Light Treads Spiked Treads Spiked Treads Scrap Engine Large Storage Unit Large Storage Unit Trap Scanner Transport Network Coupler Makeshift Thermal Plating Scrap Shield Hardlight Generator Makeshift System Restoration Module High-powered Tractor Beam Subdweller Beam Cannon Light Assault Rifle Barrage Gun Assault Cannon Subdweller Shrapnel Launcher Multitool Ripper Peak State ------------ > --- POWER ------------ Subdweller Power Source > --- PROPULSION ------- Cargo Legs > --- UTILITY ---------- Cargo Storage Unit Makeshift Light Armor Plating Hacking Suite > --- WEAPON ----------- Subdweller Beam Cannon Battle Rifle > --- INVENTORY -------- Light Treads Spiked Treads Spiked Treads Scrap Engine Large Storage Unit Large Storage Unit Trap Scanner Transport Network Coupler Makeshift Thermal Plating Scrap Shield Hardlight Generator Makeshift System Restoration Module High-powered Tractor Beam Subdweller Beam Cannon Light Assault Rifle Barrage Gun Assault Cannon Subdweller Shrapnel Launcher Multitool Ripper [Rating: 37] Favorites ----------- Power Ion Engine Engine Ion Engine Propulsion Light Treads Treads Light Treads Leg Cargo Legs Wheel Wheel Utility Large Storage Unit Device Seismic Detector Storage Large Storage Unit Processor Salvage Targeting Computer Hackware Hacking Suite Protection Medium Armor Plating Weapon Light Assault Rifle Energy Cannon Subdweller Beam Cannon Ballistic Gun Light Assault Rifle Ballistic Cannon Battle Cannon Launcher Grenade Launcher Build | -11 -10 -10 -10 -8 ------- Run | Yrd Mat Min Sub Rec Slots Evolved . | . . . . . Power . | . . . . . Propulsion . | . . . . . Utility . | . . . . . Weapon . | . . . . . Parts Attached 45 | 8 19 3 11 4 Power 6 | 1 3 . 2 . Engine 6 | 1 3 . 2 . Core . | . . . . . Reactor . | . . . . . Propulsion 15 | 3 7 . 5 . Treads 6 | 1 3 . 2 . Leg 1 | . . . 1 . Wheel 8 | 2 4 . 2 . Hover . | . . . . . Flight . | . . . . . Utility 13 | 2 7 . 2 2 Device 1 | 1 . . . . Storage 6 | 1 4 . 1 . Processor 1 | . 1 . . . Hackware 1 | . . . . 1 Protection 4 | . 2 . 1 1 Artifact . | . . . . . Weapon 11 | 2 2 3 2 2 Energy Gun . | . . . . . Energy Cannon 2 | . . . 2 . Ballistic Gun 7 | 2 2 1 . 2 Ballistic Cannon 1 | . . 1 . . Launcher 1 | . . 1 . . Special Weapon . | . . . . . Impact Weapon . | . . . . . Slashing Weapon . | . . . . . Piercing Weapon . | . . . . . Special Melee Weapon . | . . . . . Unidentified Prototypes . | . . . . . Parts Lost 2 | . 1 . . 1 Power . | . . . . . Propulsion 1 | . 1 . . . Utility 1 | . . . . 1 Weapon . | . . . . . Highest Loss Streak 1 | . 1 . . 1 To Critical Strikes . | . . . . . Average Slot Usage (%) 95 | . 97 100 94 77 Engine 13 | . 13 14 13 11 Treads 11 | . 13 14 11 . Leg 1 | . . . 1 11 Wheel 11 | . 12 14 11 . Device 1 | . 4 . . . Storage 13 | . 14 14 13 11 Processor 1 | . 3 . . . Hackware 1 | . . . . 11 Protection 10 | . 5 14 13 11 Energy Cannon 8 | . . . 19 21 Ballistic Gun 14 | . 28 16 . . Ballistic Cannon 3 | . . 11 6 . Naked Turns . | . . . . . Heaviest Build 168 | 14 34 36 168 168 Greatest Support 55 | 20 20 10 55 55 Greatest Overweight (x) 4 | 1 3 3 4 3 Average Overweight (x) 2 | . 2 3 2 2 Largest Inventory Capacity 30 | 8 15 15 30 30 Average Capacity 16 | 7 13 15 17 30 Most Carried 23 | 6 15 15 18 23 Average Carried 14 | 2 12 15 15 20 Final Capacity 30 | 8 15 15 30 30 Final Carried 22 | 6 15 15 18 22 Class Distribution -------------------- 85% | Mutant 14% | Hauler-Mutant Dominant Class ---------------- Mutant | -10/Materials Mutant | -10/Mines Mutant | -10/Subcaves Hauler-Mutant | -8/Recycling Resources | -11 -10 -10 -10 -8 ----------- Run | Yrd Mat Min Sub Rec Matter Collected 1176 | 305 558 62 205 46 Remotely . | . . . . . Salvage Created 1331 | 124 650 98 290 169 Parts 74 | 5 37 10 19 3 Haulers Intercepted 2 | . 2 . . . Recyclers Shooed . | . . . . . Parts Field Recycled . | . . . . . Retrieved Matter . | . . . . . Parts Self-Destructed 10 | . . . 10 . Prevented . | . . . . . Kills | -11 -10 -10 -10 -8 ------- Run | Yrd Mat Min Sub Rec Combat Hostiles Destroyed 23 | . 12 5 3 3 Guns 14 | . 12 2 . . Cannons 6 | . . . 3 3 AOE 3 | . . 3 . . Classes Destroyed 13 | 3 6 . 1 3 Worker 1 | 1 . . . . Builder 2 | . 2 . . . Tunneler 1 | 1 . . . . Hauler 2 | . 2 . . . Recycler 1 | 1 . . . . Operator 1 | . 1 . . . Watcher 2 | . 2 . . . Swarmer 6 | . 3 3 . . Grunt 11 | . 9 2 . . Brawler 1 | . . . . 1 Duelist 1 | . . . . 1 Sentry 1 | . . . . 1 Subdweller 3 | . . . 3 . Best Kill Streak 5 | 1 5 3 1 3 Combat Bots Only 5 | . 5 3 1 3 Max Kills in Single Turn 2 | 1 1 2 1 1 Gunslinging . | . . . . . Exploded 2 | . . 2 . . Melee . | . . . . . Uniques/NPCs Destroyed . | . . . . . Combat | -11 -10 -10 -10 -8 -------- Run | Yrd Mat Min Sub Rec Hostile Shots Fired 120 | . 57 9 10 44 Missed 28 | . 14 1 5 8 Damage Taken 1212 | . 497 95 183 437 Core 259 | . 135 . . 124 Absorbed by Shields . | . . . . . Regen/Repaired (Parts) 97 | . 97 . . . Core Remaining (%) 100 | 100 . . . . Volleys Fired 136 | 8 79 8 35 6 Largest 2 | 2 2 2 2 2 Hottest 160 | 40 40 40 160 160 Shots Fired 260 | 16 158 14 60 12 Gun 190 | 16 158 12 . 4 Cannon 68 | . . . 60 8 Launcher 2 | . . 2 . . Special . | . . . . . Kinetic 209 | 16 158 12 19 4 Thermal 49 | . . . 41 8 Explosive 2 | . . 2 . . Electromagnetic . | . . . . . Robot Hit Streak 13 | 5 13 10 9 11 Robot Miss Streak 5 | 2 5 1 3 . Penetration Max . | . . . . . Secondary Targets . | . . . . . Shots Hit Robots 170 | 11 114 10 25 10 Core Hits 68 | 6 42 9 7 4 Critical Kills 1 | . 1 . . . Critical Parts Destroyed 1 | . 1 . . . Critical Strikes 2 | . 2 . . . Destroy 2 | . 2 . . . Melee Attacks . | . . . . . Impact . | . . . . . Slashing . | . . . . . Piercing . | . . . . . Sneak Attacks . | . . . . . Combat Hostiles . | . . . . . Follow-up Attacks . | . . . . . Damage Inflicted 2316 | 110 1045 261 654 246 Guns 1255 | 110 1045 75 . 25 Cannons 875 | . . . 654 221 Explosions 186 | . . 186 . . Melee . | . . . . . Ramming . | . . . . . Kinetic 1392 | 110 1045 75 137 25 Thermal 738 | . . . 517 221 Explosive 186 | . . 186 . . Electromagnetic . | . . . . . Impact . | . . . . . Slashing . | . . . . . Piercing . | . . . . . Highest Corruption . | . . . . . Average Corruption . | . . . . . Corruption Purged . | . . . . . Corruption Blocked . | . . . . . Overload Shots . | . . . . . Overflow Damage 50 | . . 50 . . Projectiles . | . . . . . Explosions 50 | . . 50 . . Melee . | . . . . . Knockbacks 1 | . . . 1 . Impact . | . . . . . Kinetic 1 | . . . 1 . Secondary . | . . . . . Self-Inflicted Damage . | . . . . . Shots . | . . . . . Rammed . | . . . . . Targets Rammed . | . . . . . Kicked . | . . . . . Crushed . | . . . . . Highest Temperature 358 | . 18 31 99 358 Average Temperature 53 | . 7 11 24 202 Received Heat Transfer 366 | . 237 42 6 81 Effects 1 | . . . . 1 Short Circuit 1 | . . . . 1 Siege Activations . | . . . . . Robots Corrupted . | . . . . . Combat Hostiles . | . . . . . Parts Fried . | . . . . . Impact Corruptions . | . . . . . Robots Melted . | . . . . . Combat Hostiles . | . . . . . Parts Melted 1 | . . . 1 . Heat Transferred 999 | . . . 703 296 Parts Sabotaged . | . . . . . Parts Stolen . | . . . . . Parts Stripped . | . . . . . Power Chain Reactions . | . . . . . Alert | -11 -10 -10 -10 -8 ------- Run | Yrd Mat Min Sub Rec Peak Influence 251 | 15 251 137 . 124 Initial 64 | . 9 2 . 64 Average 66 | 5 73 63 . 63 Maximum Alert Level 1 | . 1 . . . Low Security (%) 98 | 100 98 100 . 100 Level 1 1 | . 1 . . . Level 2 . | . . . . . Level 3 . | . . . . . Level 4 . | . . . . . Level 5 . | . . . . . High Security . | . . . . . Max Security . | . . . . . Squads Dispatched 4 | . 4 . . . Investigation 4 | . 4 . . . Extermination . | . . . . . Reinforcement . | . . . . . Assault . | . . . . . Garrison . | . . . . . Intercept . | . . . . . Searches Triggered . | . . . . . Construction Impeded . | . . . . . Haulers Reinforced . | . . . . . Active Scanning Responses . | . . . . . Cargo Convoy Interrupts . | . . . . . Stealth | -11 -10 -10 -10 -8 --------- Run | Yrd Mat Min Sub Rec Distress Signals 1 | . 1 . . . Communications Jammed . | . . . . . Distress Signals . | . . . . . Times Spotted 46 | . 18 5 17 6 Peak Tracking Total 6 | . 3 3 6 6 Tactical Retreats 1 | . . . 1 . Traps | -11 -10 -10 -10 -8 ------- Run | Yrd Mat Min Sub Rec Traps Triggered 6 | . 3 . 3 . Indirectly . | . . . . . Trap Hack Attempts . | . . . . . Triggered . | . . . . . Disarmed . | . . . . . Reprogrammed . | . . . . . Reused . | . . . . . Traps Extracted . | . . . . . Installed . | . . . . . Triggered . | . . . . . Machines | -11 -10 -10 -10 -8 ---------- Run | Yrd Mat Min Sub Rec Machines Disabled 1 | . . . 1 . Max in Single Turn 1 | . . . 1 . Machines Repaired . | . . . . . Machines Dismantled . | . . . . . Machines Sabotaged . | . . . . . Overloaded Fab Kills . | . . . . . Hacking | -11 -10 -10 -10 -8 --------- Run | Yrd Mat Min Sub Rec Machines Accessed 12 | . 11 . 1 . Terminals 8 | . 8 . . . Fabricators . | . . . . . Repair Stations 1 | . 1 . . . Recycling Units 2 | . 2 . . . Scanalyzers . | . . . . . Garrison Access . | . . . . . Total Hacks 41 | . 40 . 1 . Successful 18 | . 17 . 1 . Failed 22 | . 22 . . . Catastrophic . | . . . . . Database Lockouts 1 | . 1 . . . Manual 21 | . 21 . . . Terminals 30 | . 30 . . . Fabricators . | . . . . . Repair Stations 5 | . 5 . . . Recycling Units 5 | . 5 . . . Scanalyzers . | . . . . . Garrison Access . | . . . . . Terminal Hacks 8 | . 7 . 1 . Part Schematic 1 | . 1 . . . Robot Analysis 2 | . 2 . . . Prototype ID Bank 1 | . 1 . . . Branch Access Points 1 | . 1 . . . Alert Level 1 | . 1 . . . Zone Layout 1 | . 1 . . . Derelict Proto ID Bank 1 | . . . 1 . Fabricator Hacks . | . . . . . Repair Station Hacks 2 | . 2 . . . Scan Component 1 | . 1 . . . Repair 1 | . 1 . . . Recycling Unit Hacks 2 | . 2 . . . Report Inventory 1 | . 1 . . . Retrieve Components 1 | . 1 . . . Scanalyzer . | . . . . . Garrison Access Hacks . | . . . . . Unauthorized Hacks 6 | . 6 . . . Terminals 4 | . 4 . . . Track 2 | . 2 . . . Botnet 2 | . 2 . . . Fabricators . | . . . . . Repair Stations . | . . . . . Recycling Units 2 | . 2 . . . Tunnel 2 | . 2 . . . Scanalyzers . | . . . . . Garrison Access . | . . . . . Data Cores Recovered 1 | . 1 . . . Used . | . . . . . Hacking Detections 10 | . 10 . . . Full Trace Events 4 | . 4 . . . Feedback Events . | . . . . . Feedback Blocked . | . . . . . Robot Schematics Acquired . | . . . . . Robots Built . | . . . . . Authchips . | . . . . . Time . | . . . . . Total Robot Build Rating . | . . . . . Part Schematics Acquired 1 | . 1 . . . Parts Built . | . . . . . Authchips . | . . . . . Time . | . . . . . Total Part Build Rating . | . . . . . Parts Repaired 1 | . 1 . . . Time 26 | . 26 . . . Parts Recycled . | . . . . . Recycled Matter . | . . . . . Retrieved Matter . | . . . . . Retrieved Components 10 | . 10 . . . Parts Scanalyzed . | . . . . . Part Schematics Acquired . | . . . . . Parts Damaged . | . . . . . Bothacking | -11 -10 -10 -10 -8 ------------ Run | Yrd Mat Min Sub Rec Used RIF Installer . | . . . . . Robots Hacked . | . . . . . Non-combat . | . . . . . Combat . | . . . . . Robot Hacks Applied . | . . . . . Relay Couplers Released . | . . . . . Fabnet Peak Effective % . | . . . . . Robots Rewired . | . . . . . Allies Hacked . | . . . . . Hacks Repelled . | . . . . . Allies | -11 -10 -10 -10 -8 -------- Run | Yrd Mat Min Sub Rec Total Allies 5 | . . 5 . . Largest Group 5 | . . 5 5 . Highest-Rated Group 89 | . . 85 89 . Highest-Rated Ally 31 | . . 31 31 . Total Orders . | . . . . . Ally Attacks 31 | . . . 31 . Total Damage 275 | . . . 275 . Kills 3 | . . . 3 . Allies Corrupted . | . . . . . Allies Melted . | . . . . . Intel | -11 -10 -10 -10 -8 ------- Run | Yrd Mat Min Sub Rec Robot Analysis Total 2 | . 2 . . . Derelict Logs Recovered 2 | . . 2 . . Drone Launches . | . . . . . Drone Recoveries . | . . . . . Exploration | -11 -10 -10 -10 -8 ------------- Run | Yrd Mat Min Sub Rec Turns Passed 4562 | 147 1861 680 1463 411 Spaces Moved 2164 | 72 790 492 697 113 Core 4 | 4 . . . . Treads 90 | 62 20 . 8 . Legs 179 | . . . 66 113 Wheels 1891 | 6 770 492 623 . Hover . | . . . . . Flight . | . . . . . Fastest Speed 50 | 50 95 125 120 270 Average Speed 143 | 148 118 125 152 337 Slowest Speed 360 | 160 240 125 360 340 Overloaded Moves . | . . . . . Propulsion Burnouts . | . . . . . Robots Hopped . | . . . . . Cave-ins Triggered . | . . . . . Exploration Rate (%) 52 | 7 98 98 45 16 Regions Visited 4 Branch Regions 3 Pre-discovered Areas 2 | . 2 . . . Known Exits Taken 1 | . 1 . . . Unknown Exits Taken 3 | 1 . 1 1 . Scrap Searched 5 | . . 1 4 . Spaces Dug 1 | . . . 1 . Terrain Destroyed 30 | . . 23 7 . Melee . | . . . . . Projectile 7 | . . . 7 . AOE 23 | . . 23 . . Terrain Rammed . | . . . . . Walls Destroyed . | . . . . . Machines Disabled . | . . . . . Actions | -11 -10 -10 -10 -8 --------- Run | Yrd Mat Min Sub Rec Total 3397 | 94 1585 544 1042 132 Wait 965 | . 653 41 267 4 Move 2160 | 71 789 491 696 113 Hop . | . . . . . Pick Up 46 | 6 22 . 13 5 Fast Attach 19 | 7 8 1 3 . Attach 4 | . . . 2 2 Detach 2 | . 1 . 1 . Swap 22 | 1 11 2 6 2 Drop 43 | 1 22 1 19 . Fire 136 | 8 79 8 35 6 Melee . | . . . . . Ram . | . . . . . Kick . | . . . . . Crush . | . . . . . Escape Stasis . | . . . . . Rewire . | . . . . . Trap . | . . . . . Miscellaneous . | . . . . . Route ------- -11/Scrapyard -10/Materials (discovered 4 exits: [*Mat x3] / *Min) -10/Mines (discovered 3 exits: [*Mat x2] / *Sub) -10/Subcaves -8/Recycling History --------- Turn | Location | Event 9 | -11/Scrapyard | Discovered new exit (range 16) 148 | -11/Scrapyard | Entered Materials 315 | -10/Materials | Build established: Mutant 431 | -10/Materials | Discovered new exit (range 15) 457 | -10/Materials | Discovered new exit (range 10) 751 | -10/Materials | Central database locked down 1139 | -10/Materials | Repaired Lgt. Treads 1163 | -10/Materials | Core integrity fell below 50% 1205 | -10/Materials | Identified exit to Mines 1219 | -10/Materials | Discovered new exit (range 16) 1646 | -10/Materials | Discovered new exit (range 13) 2009 | -10/Materials | Entered Mines 2131 | -10/Mines | A weapon hastily lodged in a ceiling crevice suddenly fell to the ground 2186 | -10/Mines | Discovered new exit (range 6) 2233 | -10/Mines | Learned location of 1 exit from Materials 2305 | -10/Mines | Discovered new exit (range 5) 2580 | -10/Mines | Assisted by bots powering up and referring to "LRC-V3" 2590 | -10/Mines | Learned 2 Materials zone layouts 2676 | -10/Mines | Discovered new exit (range 4) 2689 | -10/Mines | Entered Subcaves 2689 | -10/Subcaves | Accompanied by 5 allies 2694 | -10/Subcaves | Led the pair of lost Derelicts to an unsafe place 2745 | -10/Subcaves | Shifting Twisted Machinery released Mak. Thermal Plating 2751 | -10/Subcaves | Shifting Twisted Machinery released Sub. Beam Cannon 3567 | -10/Subcaves | Lost 3 allies 3790 | -10/Subcaves | Visited 4L-MR0's lab 3919 | -10/Subcaves | Found Cargo Legs 3921 | -10/Subcaves | Attached Cargo Legs, gained temporary slots: Utility x2 4147 | -10/Subcaves | Discovered new exit (range 3) 4152 | -10/Subcaves | Entered Recycling 4184 | -8/Recycling | Found Scrap Engine 4192 | -8/Recycling | Build established: Hauler-Mutant 4542 | -8/Recycling | Core integrity fell below 20% 4563 | -8/Recycling | Destroyed by H-55 Commando with Assault Rifle Last Messages --------------- 04532_ Slug penetrates Wall. 04535_ Critical hit (Burn: +37). 04538_ R-06 Scavenger collects Lgt. Armor Plating. 04538_ Slug penetrates Wall. 04539_ Destroyed Imp. Aluminum Leg. 04541_ Slug penetrates Wall. 04542_ L-31 Rogue destroyed. 04544_ Lgt. Assault Rifle broken. 04544_ Overheating: Short circuit. 04544_ Slug penetrates Wall. 04546_ Y-45 Defender destroyed. 04550_ Slug penetrates Wall. 04550_ Acquired 26 matter. 04556_ Slug penetrates Wall. 04556_ Med. Armor Plating destroyed. 04559_ Acquired 10 matter. 04560_ R-06 Scavenger collects Heat Sink. 04562_ Slug penetrates Wall. 04562_ R-06 Scavenger collects Heat Sink. Map ----- +----------------------------------------------------+ | ???????????????# # # #?? | | ???????????????# # # #?? | | ???????????????# # # #?? | | ???????????????# # # #?? | | ???????????????# ! # # #?? | | ???????????????# + # #?? | | ???????????????# ] ]!# # #?? | | ???????????????#= = ]# # #?? | | ???????????????########## + #?? | | ????????????????????????# # #?? | | ????????????############# # #?? | | ????????????#! [ # # #?? | | ????????????# # # #?? | | ????????????#[ # # #?? | | ????????????# [ ! # # #?? | | ????????????# + # #?? | | ????????????#% !! # ##### ##?? | | ????????????# [ # #????##??? | | ????????????############# #????????? | | ????????????????????????# #????????? | | ???????????????#######??# #????????? | | ???????????????#/ ?# #????????? | | ???????????????+ % ?# #????????? | | ???????????????# = # #????????? | | ???????????????#t ! hh#% #????????? | | ???????????????# r d ! r@ #????????? | | ???????????????# iu # r #????????? | | ???????????????# ! # #????????? | | ???????????????# ?+ +????????? | | ???????????????#Yg %?# #????????? | | ???????????????#######??# u #????????? | | ????????????????????????# #????????? | | ????????????????????????# #????????? | | ????????????????????????# #????????? | | ????????????????????????# #????????? | | ????????????????????????+ #????????? | | ????????????????????????? #????????? | | ????????????????????????? #????????? | | ????????????????????????? #????????? | | ????????????????????????? #????????? | | ????????????????????????? ?????????? | | ?????????????????????????????????????? | | ?????????????????????????????????????? | | ?????????????????????????????????????? | | ?????????????????????????????????????? | | ?????????????????????????????????????? | | ?????????????????????????????????????? | | ?????????????????????????????????????? | | ?????????????????????????????????????? | | ?????????????????????????????????????? | +----------------------------------------------------+ Best States ------------- Heat Dissipation 25 Energy Generation 10 Energy Capacity 250 Matter Stores 300 Matter Capacity 300 Sight Range 16 Terrain Scan Density 10 Armor Coverage 225 Evasion (%) 41 Recoil Reduction 2 Salvage Targeting 1 Offensive Hacking 10 Item Schematics ----------------- Lrg. Storage Unit | -10/Materials | Hacked Robot Schematics ------------------ None Fabricated ------------ Nothing Alien Tech Used ----------------- None Achievements -------------- The More The Merrier Challenges ------------ None Game ------ Seed DiametricPowerFlakker Manual? 0 Play Time 00:32:20 Cumulative 8.6 hours Start 2024.04.21 @ 00:18:19 End 2024.04.21 @ 00:56:08 Sessions 1 Manual Loads 0 Difficulty Rogue Special Mode None Game No. 7 Rogue 7 Adventurer 0 Explorer 0 Win Type - Total 0 Types 0/0/0/0/0/0/0/0/0 Lore% 13 Gallery% 23 Achievement% 22 Wizard Run 0 Options --------- Layout 1 ASCII 0 Keyboard 0 Movement Mouse Keybinds 0 Fullscreen 1 Font 24/Terminus Map View 50x35 Zoom Use 0% Tactical HUD 1 Map Filters NONE Filters NONE Steam 0 RUN: 9a94cfeb-4074-4dec-9bd4-5ba42db52da6